bitfinex/quotes_BTCUSD_20251208
["timestamp","ask_amount","ask_price","bid_price","bid_amount"]
[1765190322139,0.22711983,92186.0,92185.0,0.04694202]
[1765190322333,0.22711983,92186.0,92185.0,0.10213202]
[1765190322507,0.01016715,92186.0,92185.0,0.10213202]
[1765190322949,0.22711983,92186.0,92185.0,0.10213202]
[1765190323460,0.22711983,92186.0,92185.0,0.10413202]
[1765190323696,0.22711983,92186.0,92185.0,0.10713202]
[1765190325340,0.22711983,92186.0,92185.0,0.05194202]
[1765190325537,0.28237983,92186.0,92185.0,0.03428202]
[1765190325792,0.28237983,92186.0,92185.0,0.005]
[1765190326358,0.28237983,92186.0,92185.0,0.003]
[1765190326583,0.21695974,92183.0,92182.0,0.02928202]
[1765190326785,0.22712689,92183.0,92182.0,0.02928202]
[1765190327990,0.22712856,92183.0,92182.0,0.02928202]
[1765190328192,0.22712856,92183.0,92181.0,0.02928202]
[1765190328515,0.21696209,92182.0,92181.0,0.02928202]
[1765190328924,0.21695974,92183.0,92182.0,0.001]
[1765190329160,0.01016846,92183.0,92182.0,0.02928202]
[1765190329311,0.22712909,92183.0,92181.0,0.02928202]
[1765190329487,0.21696209,92182.0,92181.0,0.03128202]
[1765190329687,0.21696209,92182.0,92181.0,0.02928202]
[1765190330013,0.21696209,92182.0,92181.0,0.03028202]
[1765190330396,0.21696063,92183.0,92181.0,0.03028202]
[1765190330597,0.21696063,92183.0,92181.0,0.03228202]
[1765190330806,0.22780674,92184.0,92181.0,0.04313024]
[1765190331004,0.01016803,92183.0,92182.0,0.03325]
[1765190331211,0.22780338,92185.0,92182.0,0.26105826]
[1765190331415,0.01016792,92184.0,92183.0,0.21695974]
[1765190331766,0.01016792,92186.0,92185.0,0.21695503]
[1765190332307,0.01016792,92186.0,92185.0,0.23376503]
[1765190332512,0.01016792,92188.0,92187.0,0.21695032]
[1765190332711,0.01016792,92191.0,92190.0,0.21694326]
[1765190332916,8.86e-05,92192.0,92191.0,0.25569091]
[1765190333130,8.86e-05,92192.0,92191.0,0.28894091]
[1765190335744,8.86e-05,92192.0,92191.0,0.29094091]
[1765190335944,8.86e-05,92192.0,92191.0,0.28994091]
[1765190336366,8.86e-05,92192.0,92191.0,0.29294091]
[1765190337292,8.86e-05,92192.0,92191.0,0.29194091]
[1765190337588,8.86e-05,92192.0,92191.0,0.29394091]
[1765190339203,8.86e-05,92192.0,92191.0,0.26069091]
[1765190339609,8.86e-05,92192.0,92191.0,0.29256091]
[1765190341923,8.86e-05,92192.0,92191.0,0.10486545]
[1765190342131,8.86e-05,92192.0,92191.0,0.29256091]
[1765190347477,8.86e-05,92192.0,92191.0,0.04375]
[1765190347605,8.86e-05,92192.0,92191.0,0.26798676]
[1765190347811,8.86e-05,92192.0,92191.0,0.23875091]
[1765190348634,8.86e-05,92192.0,92191.0,0.29034091]
[1765190350692,8.86e-05,92192.0,92191.0,0.02181]
[1765190350872,8.86e-05,92192.0,92191.0,0.05104681]
[1765190351495,0.21702716,92192.0,92191.0,0.05104681]
[1765190351992,8.86e-05,92192.0,92191.0,0.05104681]
[1765190352599,8.86e-05,92192.0,92191.0,0.07142681]
[1765190352785,8.86e-05,92192.0,92191.0,0.10186681]
[1765190352987,8.86e-05,92192.0,92191.0,0.31880772]
[1765190353381,8.86e-05,92192.0,92191.0,0.10186681]
[1765190353582,8.86e-05,92192.0,92191.0,0.31880772]
[1765190355562,0.21702716,92192.0,92191.0,0.07142681]
[1765190355712,0.21702716,92192.0,92191.0,0.10186681]
[1765190356246,8.86e-05,92192.0,92191.0,0.10186681]
[1765190356451,8.86e-05,92192.0,92191.0,0.28957091]
[1765190356655,8.86e-05,92192.0,92191.0,0.3188135]
[1765190358262,8.86e-05,92192.0,92191.0,0.28957091]
[1765190358478,8.86e-05,92192.0,92191.0,0.07263]
[1765190358683,8.86e-05,92192.0,92191.0,0.28957091]
[1765190358972,8.86e-05,92192.0,92191.0,0.07263]
[1765190359548,0.21702716,92192.0,92191.0,0.07263]
[1765190360315,0.21702716,92192.0,92191.0,0.04219]
[1765190360517,0.21702716,92192.0,92191.0,0.005]
[1765190362435,0.27846435,92192.0,92191.0,0.03428123]
[1765190362602,0.27846435,92192.0,92191.0,0.005]
[1765190363011,0.27846435,92192.0,92191.0,0.003]
[1765190363428,0.27846435,92192.0,92191.0,0.004]
[1765190363789,0.27846065,92192.0,92191.0,0.003]
[1765190364094,0.21697621,92176.0,92175.0,0.02928123]
[1765190364471,0.21697857,92175.0,92174.0,0.02928123]
[1765190364869,0.01164,92190.0,92181.0,0.01084822]
[1765190365067,0.01084739,92188.0,92183.0,0.0292567]
[1765190365282,0.22779681,92188.0,92183.0,0.04010468]
[1765190365417,0.22779681,92188.0,92183.0,0.25706412]
[1765190365623,0.22779681,92188.0,92185.0,0.21695403]
[1765190365821,0.21695738,92184.0,92183.0,0.0292567]
[1765190366067,0.21695523,92185.0,92183.0,0.0292567]
[1765190366271,0.21695738,92184.0,92183.0,0.0292567]
[1765190366475,0.21695738,92184.0,92181.0,0.25706914]
[1765190366712,0.02248716,92190.0,92181.0,0.25706914]
[1765190366713,0.01084681,92193.0,92189.0,0.01084728]
[1765190366923,0.22787409,92192.0,92189.0,0.23269551]
[1765190367064,0.01093552,92192.0,92189.0,0.24354279]
[1765190367488,0.02109766,92192.0,92189.0,0.24354279]
[1765190367849,8.86e-05,92192.0,92191.0,0.02038]
[1765190368070,8.86e-05,92192.0,92189.0,0.24453822]
[1765190368299,0.21702768,92192.0,92189.0,0.24553822]
[1765190369232,0.01093552,92192.0,92189.0,0.01775]
[1765190369462,0.23747326,92190.0,92189.0,0.001]
[1765190369658,0.21694107,92191.0,92189.0,0.001]
[1765190369888,0.21694326,92190.0,92189.0,0.001]
[1765190370427,0.01084763,92186.0,92183.0,0.0292567]
[1765190370627,0.21695974,92183.0,92181.0,0.0292567]
[1765190371051,0.01084775,92185.0,92182.0,0.0292567]
[1765190371262,0.01084786,92184.0,92182.0,0.0292567]
[1765190371571,0.01084786,92184.0,92181.0,0.0292567]
[1765190371806,0.21695974,92183.0,92181.0,0.0292567]
[1765190372011,0.21695974,92183.0,92181.0,0.0312567]
[1765190372795,0.22780471,92186.0,92181.0,0.0312567]
[1765190372796,0.22780108,92186.0,92181.0,0.04210492]
[1765190373016,0.21702935,92192.0,92186.0,0.01084763]
[1765190373168,0.22778991,92191.0,92188.0,0.21694605]
[1765190373692,0.21694399,92190.0,92187.0,0.21694845]
[1765190373840,0.21694399,92190.0,92187.0,0.22779596]
[1765190374244,8.86e-05,92192.0,92187.0,0.01084751]
[1765190374478,0.21694091,92191.0,92186.0,0.21695268]
[1765190374737,0.21694652,92189.0,92186.0,0.21695268]
[1765190374940,0.21694652,92189.0,92187.0,0.21694995]
[1765190375352,0.2278744,92192.0,92189.0,0.2277929]
[1765190375659,0.21694562,92189.0,92188.0,0.02038]
[1765190375895,0.2278744,92192.0,92188.0,0.02038]
[1765190375896,8.86e-05,92192.0,92189.0,0.01084728]
[1765190376102,8.86e-05,92192.0,92190.0,0.21694326]
[1765190376291,8.86e-05,92192.0,92191.0,0.23732091]
[1765190376496,8.86e-05,92192.0,92191.0,0.02038]
[1765190377299,0.21702716,92192.0,92191.0,0.02038]
[1765190377941,0.21694326,92190.0,92189.0,0.001]
[1765190378238,0.22787432,92192.0,92188.0,0.22779339]
[1765190378650,0.22787432,92192.0,92189.0,0.21694546]
[1765190379799,0.21694163,92191.0,92189.0,0.21694546]
[1765190380199,8.86e-05,92192.0,92191.0,0.21694091]
[1765190380447,8.86e-05,92192.0,92191.0,0.23732091]
[1765190380657,8.86e-05,92192.0,92191.0,0.26776091]
[1765190382463,8.86e-05,92192.0,92191.0,0.26628091]
[1765190383216,0.21702716,92192.0,92189.0,0.22779274]
[1765190383418,8.86e-05,92192.0,92187.0,0.04010421]
[1765190383634,0.22787442,92192.0,92189.0,0.21694483]
[1765190384729,0.22787442,92192.0,92189.0,0.21794483]
[1765190385118,0.22787442,92192.0,92189.0,0.21894483]
[1765190385818,8.86e-05,92192.0,92191.0,0.21694091]
[1765190387025,0.01093552,92192.0,92189.0,0.001]
[1765190387205,0.21694091,92191.0,92189.0,0.001]
[1765190387446,0.21694091,92191.0,92188.0,0.22779325]
[1765190388017,0.01093552,92192.0,92189.0,0.22779173]
[1765190388220,8.86e-05,92192.0,92191.0,0.21694091]
[1765190388656,8.86e-05,92192.0,92191.0,0.26703091]
[1765190395021,8.86e-05,92192.0,92191.0,0.28168091]
[1765190395588,8.86e-05,92192.0,92191.0,0.31093761]
[1765190400173,8.86e-05,92192.0,92191.0,0.28168091]
[1765190400557,8.86e-05,92192.0,92191.0,0.30387291]
[1765190402769,8.86e-05,92192.0,92191.0,0.30587291]
[1765190402948,8.86e-05,92192.0,92191.0,0.32599291]
[1765190403433,8.86e-05,92192.0,92191.0,0.38448962]
[1765190405461,8.86e-05,92192.0,92191.0,0.32599291]
[1765190406631,8.86e-05,92192.0,92191.0,0.30887291]
[1765190406831,8.86e-05,92192.0,92191.0,0.32599291]
[1765190407015,8.86e-05,92192.0,92191.0,0.30887291]
[1765190407238,8.86e-05,92192.0,92191.0,0.30380091]
[1765190409604,8.86e-05,92192.0,92191.0,0.28668091]
[1765190409830,8.86e-05,92192.0,92191.0,0.30380091]
[1765190413044,8.86e-05,92192.0,92191.0,0.32599291]
[1765190416251,8.86e-05,92192.0,92191.0,0.30380091]
[1765190417951,8.86e-05,92192.0,92191.0,0.28668091]
[1765190418129,8.86e-05,92192.0,92191.0,0.30380091]
[1765190418334,8.86e-05,92192.0,92191.0,0.28668091]
[1765190418539,8.86e-05,92192.0,92191.0,0.01965]
[1765190418722,8.86e-05,92192.0,92191.0,0.005]
[1765190418927,0.21702716,92192.0,92191.0,0.005]
[1765190419128,0.21702716,92192.0,92191.0,0.002]
[1765190419327,0.21694091,92191.0,92190.0,0.21]
[1765190419955,0.21694091,92191.0,92188.0,0.04007825]
[1765190420285,0.21694091,92191.0,92188.0,0.25702601]
[1765190420473,0.21694091,92191.0,92190.0,0.001]
[1765190420654,0.01093552,92192.0,92190.0,0.001]
[1765190421030,0.21694091,92191.0,92190.0,0.001]
[1765190421789,0.21694562,92189.0,92188.0,0.02923086]
[1765190422136,0.21694562,92189.0,92188.0,0.03223086]
[1765190422365,0.21694562,92189.0,92188.0,0.003]
[1765190422569,0.21694797,92188.0,92187.0,0.02923086]
[1765190423590,0.21695268,92186.0,92185.0,0.02923086]
[1765190423763,0.21695503,92185.0,92184.0,0.02923086]
[1765190424385,0.2185679,92185.0,92184.0,0.02923086]
[1765190424551,0.2330579,92185.0,92184.0,0.02923086]
[1765190424751,0.21695738,92184.0,92183.0,0.02923086]
[1765190424957,0.21695738,92184.0,92168.0,0.24841479]
[1765190424958,0.22781514,92180.0,92177.0,0.02923086]
[1765190425161,0.21698328,92173.0,92172.0,0.05494276]
[1765190425373,0.21698092,92174.0,92172.0,0.01597]
[1765190425590,0.22782751,92175.0,92172.0,0.01597]
[1765190425786,0.01084892,92175.0,92173.0,0.21698309]
[1765190426036,0.21697837,92176.0,92173.0,0.21698325]
[1765190426388,0.21697837,92176.0,92175.0,0.02922872]
[1765190426791,0.01084857,92178.0,92175.0,0.02922872]
[1765190426995,0.21697392,92177.0,92175.0,0.02922872]
[1765190427221,0.21697621,92176.0,92175.0,0.02922872]
[1765190427979,0.21697392,92177.0,92175.0,0.02922872]
[1765190428207,0.21697392,92177.0,92175.0,0.03022872]
[1765190428415,0.22782036,92178.0,92175.0,0.21897758]
[1765190428726,0.21697621,92176.0,92175.0,0.002]
[1765190428893,0.21697386,92177.0,92175.0,0.001]
[1765190429102,0.21697386,92177.0,92174.0,0.02922872]
[1765190429320,0.22782041,92178.0,92175.0,0.001]
[1765190429535,0.00161287,92180.0,92178.0,0.21697151]
[1765190429769,0.00161287,92180.0,92179.0,0.23293915]
[1765190430719,0.22778935,92191.0,92186.0,0.01084763]
[1765190431029,0.22778935,92191.0,92190.0,0.01588]
[1765190431957,0.21694885,92188.0,92184.0,0.02672786]
[1765190432157,0.21695338,92186.0,92184.0,0.01588]
[1765190432363,0.21695288,92186.0,92184.0,0.01588]
[1765190432759,0.22779822,92187.0,92184.0,0.23283692]
[1765190433240,0.21695299,92186.0,92184.0,0.01588]
[1765190433441,0.21695299,92186.0,92184.0,0.23283691]
[1765190433442,0.001,92186.0,92184.0,0.23283691]
[1765190433597,0.001,92186.0,92184.0,0.2328372]
[1765190434003,0.001,92186.0,92184.0,0.23283653]
[1765190434384,0.001,92186.0,92185.0,0.21695503]
[1765190434581,0.001,92186.0,92185.0,0.23651503]
[1765190434807,0.001,92186.0,92185.0,0.01956]
[1765190435005,0.01084786,92184.0,92180.0,0.01084834]
[1765190435205,0.01084751,92187.0,92179.0,0.02681845]
[1765190435206,0.001,92187.0,92179.0,0.02681845]
[1765190435407,0.01184751,92187.0,92184.0,0.01084786]
[1765190435607,0.01084751,92187.0,92185.0,0.001]
[1765190435837,0.01084751,92187.0,92185.0,0.002]
[1765190436165,0.22779789,92187.0,92184.0,0.21695518]
[1765190436316,0.21695384,92186.0,92183.0,0.22780599]
[1765190436536,0.21695384,92186.0,92183.0,0.25922599]
[1765190436736,0.22780147,92186.0,92183.0,0.25922599]
[1765190436916,0.01084775,92185.0,92182.0,0.0108481]
[1765190437345,0.21695741,92184.0,92182.0,0.0422681]
[1765190437522,0.21695741,92184.0,92182.0,0.25922952]
[1765190437723,0.2278029,92185.0,92183.0,0.05098]
[1765190438353,0.2278029,92185.0,92183.0,0.05198]
[1765190438757,0.2278029,92185.0,92183.0,0.05098]
[1765190438996,0.21695738,92184.0,92183.0,0.05198]
[1765190439201,0.2278029,92185.0,92183.0,0.05298]
[1765190439836,0.2278048,92186.0,92183.0,0.2807855]
[1765190439837,0.01084763,92186.0,92183.0,0.2807855]
[1765190440016,0.22779811,92187.0,92184.0,0.21695682]
[1765190440358,0.22779811,92187.0,92185.0,0.21695464]
[1765190440552,0.22779811,92187.0,92184.0,0.01084786]
[1765190440810,0.22779811,92187.0,92184.0,0.22780491]
[1765190440959,0.22779811,92187.0,92183.0,0.2278055]
[1765190440960,0.22780032,92186.0,92183.0,0.2278055]
[1765190441304,0.22780032,92186.0,92183.0,0.2288055]
[1765190441508,0.22780032,92186.0,92184.0,0.001]
[1765190441838,0.21695503,92185.0,92184.0,0.001]
[1765190442310,0.21695738,92184.0,92183.0,0.001]
[1765190442514,0.22781251,92182.0,92179.0,0.05604717]
[1765190442655,0.22781251,92182.0,92180.0,0.21696607]
[1765190442656,0.0108481,92182.0,92180.0,0.21696607]
[1765190442863,0.00161287,92186.0,92180.0,0.2169668]
[1765190443234,0.21856585,92186.0,92184.0,0.001]
[1765190443563,0.21856585,92186.0,92184.0,0.21795725]
[1765190443765,0.21695503,92185.0,92184.0,0.001]
[1765190444418,0.21695842,92184.0,92181.0,0.01084822]
[1765190444721,0.22780628,92184.0,92181.0,0.22781219]
[1765190444954,0.22780628,92184.0,92181.0,0.21696322]
[1765190445165,0.21695982,92183.0,92181.0,0.21696322]
[1765190445458,0.01084786,92184.0,92182.0,0.2169616]
[1765190446090,0.2278042,92185.0,92182.0,0.2278097]
[1765190446453,0.00571,92183.0,92181.0,0.03022872]
[1765190446801,0.22267146,92183.0,92181.0,0.03022872]
[1765190446996,0.00571,92183.0,92181.0,0.24719317]
[1765190447423,0.00571,92183.0,92182.0,0.24619081]
[1765190447754,0.00571,92183.0,92182.0,0.24719081]
[1765190448166,0.23384974,92183.0,92182.0,0.03022872]
[1765190448367,0.22781348,92181.0,92179.0,0.02922872]
[1765190448568,0.22781281,92181.0,92178.0,0.02922872]
[1765190448997,0.2169668,92180.0,92179.0,0.01427]
[1765190449894,0.2169668,92180.0,92179.0,0.03403]
[1765190450761,0.2169668,92180.0,92179.0,0.03503]
[1765190450961,0.2169668,92180.0,92179.0,0.03403]
[1765190451321,0.2169668,92180.0,92179.0,0.03603]
[1765190453558,0.2169668,92180.0,92179.0,0.06525872]
[1765190455289,0.23351846,92183.0,92179.0,0.06525872]
[1765190455485,0.2169668,92180.0,92179.0,0.09568872]
[1765190456129,0.2169668,92180.0,92179.0,0.06525872]
[1765190456475,0.2169668,92180.0,92179.0,0.03603]
[1765190456681,0.2169668,92180.0,92179.0,0.01627]
[1765190457449,0.2169668,92180.0,92179.0,0.002]
[1765190457653,0.23831231,92180.0,92179.0,0.002]
[1765190457883,0.24949231,92180.0,92179.0,0.002]
[1765190458303,0.24949231,92180.0,92179.0,0.001]
[1765190458615,0.24949231,92180.0,92179.0,0.002]
[1765190458824,0.24949231,92180.0,92179.0,0.06646]
[1765190458825,0.01016551,92180.0,92179.0,0.06646]
[1765190459003,0.2169668,92180.0,92179.0,0.06546]
[1765190459221,0.01016551,92180.0,92179.0,0.06446]
[1765190459407,0.001,92180.0,92179.0,0.03403]
[1765190459606,0.0108481,92182.0,92179.0,0.03403]
[1765190459806,0.01016551,92183.0,92181.0,0.21696445]
[1765190460044,0.01016551,92184.0,92182.0,0.21696209]
[1765190460266,0.23796847,92185.0,92182.0,0.21696209]
[1765190460467,0.01016551,92184.0,92182.0,0.21696209]
[1765190460989,0.23406465,92190.0,92182.0,0.21696209]
[1765190460990,0.03257649,92193.0,92189.0,0.01084728]
[1765190461189,0.01016197,92194.0,92191.0,0.27316291]
[1765190461398,0.02100783,92201.0,92191.0,0.27316291]
[1765190461551,0.21692021,92200.0,92191.0,0.30359291]
[1765190461738,0.02100807,92199.0,92191.0,0.33282163]
[1765190461940,0.21693403,92194.0,92191.0,0.33282163]
[1765190462245,0.21693403,92194.0,92191.0,0.31062963]
[1765190462451,0.22777823,92195.0,92191.0,0.31262963]
[1765190462667,0.22777127,92198.0,92191.0,0.31262963]
[1765190462880,0.01084622,92198.0,92191.0,0.31062963]
[1765190463079,0.01084622,92198.0,92191.0,0.28140091]
[1765190463284,0.01084598,92200.0,92191.0,0.28340091]
[1765190463481,0.22707678,92201.0,92191.0,0.28340091]
[1765190463679,0.21691041,92204.0,92191.0,0.28340091]
[1765190463997,0.01015674,92203.0,92191.0,0.30559291]
[1765190464232,0.22776096,92202.0,92191.0,0.30559291]
[1765190464351,0.01084563,92203.0,92191.0,0.30559291]
[1765190464548,0.227761,92202.0,92191.0,0.30559291]
[1765190465660,0.01084586,92201.0,92191.0,0.30559291]
[1765190466265,0.21693677,92193.0,92191.0,0.002]
[1765190466470,0.0108461,92199.0,92191.0,0.06468]
[1765190467086,0.2277659,92200.0,92191.0,0.06468]
[1765190467281,0.01084551,92204.0,92191.0,0.06468]
[1765190467505,0.01014982,92206.0,92191.0,0.06468]
[1765190467705,0.02099427,92213.0,92191.0,0.06468]
[1765190467905,0.01107581,92212.0,92191.0,0.10365276]
[1765190468330,0.01084492,92209.0,92191.0,0.10365276]
[1765190468760,0.01084492,92209.0,92191.0,0.06468]
[1765190468952,0.01084504,92208.0,92191.0,0.08637409]
[1765190469929,0.01084492,92209.0,92191.0,0.08637409]
[1765190470147,0.01084492,92209.0,92191.0,0.12532482]
[1765190470547,0.01084481,92210.0,92191.0,0.12532482]
[1765190470752,0.00023124,92212.0,92191.0,0.086872]
[1765190470973,0.00023124,92212.0,92191.0,0.10856609]
[1765190472281,0.00023124,92212.0,92191.0,0.10556609]
[1765190472687,0.2277398,92211.0,92191.0,0.11056609]
[1765190472885,0.2277398,92211.0,92191.0,0.10524409]
[1765190472886,0.01084481,92210.0,92191.0,0.10524409]
[1765190473127,0.01084492,92209.0,92191.0,0.10524409]
[1765190473460,0.01084504,92208.0,92191.0,0.10349409]
[1765190473661,0.01084528,92206.0,92191.0,0.10349409]
[1765190473863,0.01084516,92207.0,92191.0,0.10649409]
[1765190474428,0.22775138,92206.0,92191.0,0.35560201]
[1765190474550,0.22775138,92206.0,92191.0,0.34065893]
[1765190475011,0.22775352,92205.0,92191.0,0.34065893]
[1765190475421,0.01084551,92204.0,92191.0,0.32353893]
[1765190475623,0.01084551,92204.0,92191.0,0.34065893]
[1765190475792,0.01084563,92203.0,92191.0,0.34065893]
[1765190475993,0.01084551,92204.0,92191.0,0.34065893]
[1765190476230,0.01084516,92207.0,92191.0,0.34065893]
[1765190476442,0.01084539,92205.0,92191.0,0.34065893]
[1765190476650,0.01084563,92203.0,92191.0,0.30174091]
[1765190476857,0.01084551,92204.0,92191.0,0.30174091]
[1765190477057,0.21691031,92205.0,92191.0,0.30174091]
[1765190477347,0.22775141,92206.0,92191.0,0.30174091]
[1765190477770,0.22775383,92205.0,92191.0,0.30174091]
[1765190477989,0.21691072,92204.0,92191.0,0.30174091]
[1765190478179,0.01084575,92202.0,92191.0,0.30174091]
[1765190478479,0.01084551,92204.0,92191.0,0.30174091]
[1765190478685,0.01084528,92206.0,92191.0,0.30174091]
[1765190479005,0.01084551,92204.0,92191.0,0.30174091]
[1765190479170,0.22775101,92206.0,92191.0,0.30174091]
[1765190479971,0.01084539,92205.0,92191.0,0.30174091]
[1765190480325,0.21691075,92204.0,92191.0,0.30174091]
[1765190480594,0.01084669,92194.0,92191.0,0.30174091]
[1765190480841,0.01084633,92197.0,92191.0,0.30174091]
[1765190481031,0.01084633,92197.0,92191.0,0.06768]
[1765190481190,0.2169318,92195.0,92191.0,0.28462091]
[1765190481390,0.01084657,92195.0,92191.0,0.28462091]
[1765190481594,0.01084657,92195.0,92191.0,0.06768]
[1765190481761,0.01084669,92194.0,92191.0,0.04071]
[1765190481974,0.22778286,92194.0,92191.0,0.03271]
[1765190482172,0.2277782,92195.0,92191.0,0.25365091]
[1765190482590,0.21702716,92192.0,92191.0,0.01564]
[1765190482791,0.21702716,92192.0,92190.0,0.21]
[1765190482998,0.01084728,92189.0,92186.0,0.01084763]
[1765190483233,0.22778889,92191.0,92187.0,0.22779597]
[1765190483409,0.21694385,92190.0,92187.0,0.22779597]
[1765190484072,0.22940176,92191.0,92187.0,0.22779597]
[1765190484343,0.00161287,92191.0,92188.0,0.01084739]
[1765190484894,0.00161287,92191.0,92190.0,0.001]
[1765190485292,0.00161287,92191.0,92189.0,0.21694506]
[1765190486368,0.00161287,92191.0,92190.0,0.21694326]
[1765190486607,0.00161287,92191.0,92190.0,0.26144326]
[1765190487753,8.86e-05,92192.0,92191.0,0.21694091]
[1765190487934,8.86e-05,92192.0,92191.0,0.27519091]
[1765190488452,8.86e-05,92192.0,92191.0,0.29738291]
[1765190489899,8.86e-05,92192.0,92191.0,0.29938291]
[1765190490324,8.86e-05,92192.0,92191.0,0.29738291]
[1765190490784,8.86e-05,92192.0,92191.0,0.30038291]
[1765190491133,8.86e-05,92192.0,92191.0,0.35887962]
[1765190491726,8.86e-05,92192.0,92191.0,0.30038291]
[1765190492642,8.86e-05,92192.0,92191.0,0.35887962]
[1765190493607,8.86e-05,92192.0,92191.0,0.35987962]
[1765190493870,8.86e-05,92192.0,92191.0,0.33768762]
[1765190494226,8.86e-05,92192.0,92191.0,0.27919091]
[1765190494998,8.86e-05,92192.0,92191.0,0.27819091]
[1765190495235,8.86e-05,92192.0,92191.0,0.28219091]
[1765190498379,8.86e-05,92192.0,92191.0,0.29931091]
[1765190498987,8.86e-05,92192.0,92191.0,0.29631091]
[1765190499403,8.86e-05,92192.0,92191.0,0.29831091]
[1765190499632,8.86e-05,92192.0,92191.0,0.29431091]
[1765190500431,8.86e-05,92192.0,92191.0,0.35280762]
[1765190500608,8.86e-05,92192.0,92191.0,0.29631091]
[1765190502618,8.86e-05,92192.0,92191.0,0.27919091]
[1765190502844,8.86e-05,92192.0,92191.0,0.29631091]
[1765190503764,8.86e-05,92192.0,92191.0,0.29126074]
[1765190503991,8.86e-05,92192.0,92191.0,0.25226091]
[1765190504795,8.86e-05,92192.0,92191.0,0.29126074]
[1765190504998,8.86e-05,92192.0,92191.0,0.25226091]
[1765190505245,8.86e-05,92192.0,92191.0,0.28003091]
[1765190505867,8.86e-05,92192.0,92191.0,0.31903074]
[1765190508014,8.86e-05,92192.0,92191.0,0.30222291]
[1765190508598,8.86e-05,92192.0,92191.0,0.62522291]
[1765190508798,8.86e-05,92192.0,92191.0,0.62322291]
[1765190508985,8.86e-05,92192.0,92191.0,0.62122291]
[1765190509191,8.86e-05,92192.0,92191.0,0.62422291]
[1765190509391,8.86e-05,92192.0,92191.0,0.62822291]
[1765190511043,8.86e-05,92192.0,92191.0,0.64534291]
[1765190512516,8.86e-05,92192.0,92191.0,0.64968471]
[1765190519749,8.86e-05,92192.0,92191.0,0.62749271]
[1765190520055,8.86e-05,92192.0,92191.0,0.64968471]
[1765190521343,8.86e-05,92192.0,92191.0,0.64534291]
[1765190521524,8.86e-05,92192.0,92191.0,0.28303091]
[1765190521896,8.86e-05,92192.0,92191.0,0.30015091]
[1765190522083,8.86e-05,92192.0,92191.0,0.28303091]
[1765190522287,8.86e-05,92192.0,92191.0,0.25526091]
[1765190522487,8.86e-05,92192.0,92191.0,0.28022091]
[1765190522632,8.86e-05,92192.0,92191.0,0.27622091]
[1765190523040,8.86e-05,92192.0,92191.0,0.27822091]
[1765190523521,8.86e-05,92192.0,92191.0,0.27322091]
[1765190523685,8.86e-05,92192.0,92191.0,0.27522091]
[1765190524070,8.86e-05,92192.0,92191.0,0.27322091]
[1765190524495,8.86e-05,92192.0,92191.0,0.27422091]
[1765190529899,8.86e-05,92192.0,92191.0,0.31321596]
[1765190530537,8.86e-05,92192.0,92191.0,0.05728]
[1765190530706,8.86e-05,92192.0,92191.0,0.27422091]
[1765190531314,8.86e-05,92192.0,92191.0,0.01475]
[1765190531515,0.21702716,92192.0,92191.0,0.0302455]
[1765190532630,0.21702716,92192.0,92191.0,0.001]
[1765190532820,0.21902716,92192.0,92190.0,0.2392455]
[1765190533057,0.21694091,92191.0,92190.0,0.2392455]
[1765190533214,0.22125378,92191.0,92190.0,0.21]
[1765190534003,0.00431287,92191.0,92190.0,0.21]
[1765190534520,0.21855378,92191.0,92190.0,0.21]
[1765190535526,0.22055378,92191.0,92190.0,0.21]
[1765190535728,0.00361287,92191.0,92190.0,0.21]
[1765190536361,0.00361287,92191.0,92190.0,0.42694326]
[1765190536736,0.00361287,92191.0,92190.0,0.46840326]
[1765190542604,0.00361287,92191.0,92190.0,0.21]
[1765190542799,0.00631287,92191.0,92190.0,0.21]
[1765190544800,0.00361287,92191.0,92190.0,0.21]
[1765190545937,0.00361287,92191.0,92190.0,0.25146]
[1765190546756,0.002,92191.0,92190.0,0.25146]
[1765190547994,8.86e-05,92192.0,92191.0,0.23913291]
[1765190548193,8.86e-05,92192.0,92191.0,0.33261796]
[1765190549096,8.86e-05,92192.0,92191.0,0.29362291]
[1765190549301,8.86e-05,92192.0,92191.0,0.29662291]
[1765190549514,8.86e-05,92192.0,92191.0,0.29862291]
[1765190556348,8.86e-05,92192.0,92191.0,0.27643091]
[1765190556546,8.86e-05,92192.0,92191.0,0.25119091]
[1765190556824,8.86e-05,92192.0,92191.0,0.2739839]
[1765190557103,8.86e-05,92192.0,92191.0,0.23297091]
[1765190557280,8.86e-05,92192.0,92191.0,0.22997091]
[1765190557480,8.86e-05,92192.0,92191.0,0.23297091]
[1765190557812,8.86e-05,92192.0,92191.0,0.22997091]
[1765190558031,8.86e-05,92192.0,92191.0,0.27143091]
[1765190558193,0.0010886,92192.0,92191.0,0.27143091]
[1765190558394,0.0010886,92192.0,92191.0,0.29562291]
[1765190558819,0.0010886,92192.0,92191.0,0.29362291]
[1765190560014,0.0010886,92192.0,92191.0,0.29462291]
[1765190560415,8.86e-05,92192.0,92191.0,0.29462291]
[1765190563963,8.86e-05,92192.0,92191.0,0.27094091]
[1765190564161,8.86e-05,92192.0,92191.0,0.29313291]
[1765190566521,8.86e-05,92192.0,92191.0,0.27094091]
[1765190567218,8.86e-05,92192.0,92191.0,0.35162984]
[1765190568263,8.86e-05,92192.0,92191.0,0.67462984]
[1765190568417,8.86e-05,92192.0,92191.0,0.61613291]
[1765190568619,8.86e-05,92192.0,92191.0,0.62720872]
[1765190570722,8.86e-05,92192.0,92191.0,0.65199792]
[1765190571398,0.00023124,92212.0,92211.0,0.23908586]
[1765190571621,0.00023124,92212.0,92211.0,0.25553586]
[1765190572011,0.00023124,92212.0,92211.0,0.27928586]
[1765190573676,0.00023124,92212.0,92211.0,0.28028586]
[1765190574219,0.00023124,92212.0,92211.0,0.60228586]
[1765190574658,0.00023124,92212.0,92211.0,0.60928586]
[1765190575267,0.00023124,92212.0,92211.0,0.60628586]
[1765190575466,0.00023124,92212.0,92211.0,0.60228586]
[1765190575667,0.00023124,92212.0,92211.0,0.61128586]
[1765190579843,0.00023124,92212.0,92211.0,0.62840586]
[1765190580353,0.00023124,92212.0,92211.0,0.64738557]
[1765190580571,0.00023124,92212.0,92211.0,0.62540586]
[1765190580995,0.00023124,92212.0,92211.0,0.26009386]
[1765190581355,0.00023124,92212.0,92211.0,0.27821386]
[1765190581554,0.00023124,92212.0,92211.0,0.27421386]
[1765190581762,0.00023124,92212.0,92211.0,0.25909386]
[1765190581959,0.00023124,92212.0,92211.0,0.27921386]
[1765190585806,0.00023124,92212.0,92211.0,0.30140586]
[1765190586009,0.00023124,92212.0,92211.0,0.34026986]
[1765190586834,0.00023124,92212.0,92211.0,0.30140586]
[1765190587383,0.00023124,92212.0,92211.0,0.26209386]
[1765190587535,0.00023124,92212.0,92211.0,0.27921386]
[1765190587756,0.00023124,92212.0,92211.0,0.26209386]
[1765190588923,0.00023124,92212.0,92211.0,0.28228586]
[1765190589279,0.00023124,92212.0,92211.0,0.28028586]
[1765190596254,0.00023124,92212.0,92211.0,0.31914986]
[1765190597330,0.00023124,92212.0,92211.0,0.28028586]
[1765190598061,0.00023124,92212.0,92211.0,0.23434386]
[1765190598062,0.00184411,92212.0,92211.0,0.23434386]
[1765190598262,0.00184411,92212.0,92211.0,0.25734386]